fUSD/lending_fUSD_20260608
["ID","MTS","AMOUNT","RATE_DAILY","PERIOD"]
[424453398,1780921833000,-500.0,0.00013329,2]
[424453404,1780921833000,-500.0,0.00013329,2]
[424453450,1780921833000,-497.98493118,0.00013698,2]
[424453403,1780921833000,-500.0,0.00013329,2]
[424453402,1780921833000,-500.0,0.00013329,2]
[424453409,1780921833000,-500.0,0.0001333,2]
[424453410,1780921833000,-500.0,0.0001333,2]
[424453407,1780921833000,-526.84702297,0.00013329,2]
[424453408,1780921833000,-151.17109124,0.0001333,2]
[424453424,1780921833000,-450.0,0.0001333,2]
[424453411,1780921833000,-500.0,0.0001333,2]
[424453415,1780921833000,-500.0,0.0001333,2]
[424453418,1780921833000,-500.0,0.0001333,2]
[424453413,1780921833000,-500.0,0.0001333,2]
[424453416,1780921833000,-500.0,0.0001333,2]
[424453419,1780921833000,-250.0,0.0001333,2]
[424453412,1780921833000,-500.0,0.0001333,2]
[424453414,1780921833000,-500.0,0.0001333,2]
[424453417,1780921833000,-500.0,0.0001333,2]
[424453432,1780921833000,-150.0,0.00013488,2]
[424453422,1780921833000,-444.0,0.0001333,2]
[424453433,1780921833000,-150.0,0.00013488,2]
[424453423,1780921833000,-443.0,0.0001333,2]
[424453420,1780921833000,-507.27012513,0.0001333,2]
[424453455,1780921833000,-500.0,0.00013698,2]
[424453400,1780921833000,-500.0,0.00013329,2]
[424453452,1780921833000,-500.0,0.00013698,2]
[424453489,1780921833000,-620.76,0.00014128,2]
[424453493,1780921833000,-500.0,0.00014178,2]
[424453495,1780921833000,-500.0,0.00014178,2]
[424453498,1780921833000,-500.0,0.00014178,2]
[424453490,1780921833000,-15894.42818488,0.00014169,2]
[424453488,1780921833000,-166.66,0.0001411,2]
[424453494,1780921833000,-500.0,0.00014178,2]
[424453491,1780921833000,-500.0,0.00014178,2]
[424453497,1780921833000,-500.0,0.00014178,2]
[424453492,1780921833000,-500.0,0.00014178,2]
[424453499,1780921833000,-500.0,0.00014178,2]
[424453496,1780921833000,-500.0,0.00014178,2]
[424453487,1780921833000,-624.59697263,0.00014078,2]
[424453500,1780921833000,-415.22640013,0.00014178,2]
[424453501,1780921833000,-500.0,0.00014178,2]
[424453503,1780921833000,-150.0,0.00014237,2]
[424453504,1780921833000,-166.66,0.00014247,2]
[424453505,1780921833000,-15894.42818488,0.00014352,2]
[424453509,1780921833000,-155.18,0.00014407,2]
[424453510,1780921833000,-500.0,0.00014447,2]
[424453508,1780921833000,-15000.0,0.00014405,2]
[424453506,1780921833000,-10000.0,0.00014379,2]
[424453507,1780921833000,-166.66,0.00014384,2]
[424453512,1780921833000,-500.0,0.00014447,2]
[424453513,1780921833000,-500.0,0.00014447,2]
[424453454,1780921833000,-500.0,0.00013698,2]
[424453502,1780921833000,-316.62019818,0.00014178,2]
[424453483,1780921833000,-166.66,0.00013973,2]
[424453511,1780921833000,-500.0,0.00014447,2]
[424453482,1780921833000,-580.2951521,0.00013863,2]
[424453449,1780921833000,-500.0,0.00013698,2]
[424453451,1780921833000,-500.0,0.00013698,2]
[424453460,1780921833000,-500.0,0.00013698,2]
[424453462,1780921833000,-500.0,0.00013698,2]
[424453463,1780921833000,-500.0,0.00013698,2]
[424453466,1780921833000,-500.0,0.00013698,2]
[424453465,1780921833000,-500.0,0.00013698,2]
[424453481,1780921833000,-500.0,0.00013863,2]
[424453469,1780921833000,-500.0,0.00013698,2]
[424453467,1780921833000,-500.0,0.00013698,2]
[424453461,1780921833000,-500.0,0.00013698,2]
[424453472,1780921833000,-166.66,0.00013699,2]
[424453471,1780921833000,-200.0,0.00013699,2]
[424453464,1780921833000,-500.0,0.00013698,2]
[424453470,1780921833000,-500.0,0.00013698,2]
[424453468,1780921833000,-500.0,0.00013698,2]
[424453479,1780921833000,-15894.42818488,0.00013804,2]
[424453477,1780921833000,-1000.0,0.00013699,15]
[424453478,1780921833000,-1000.0,0.00013699,15]
[424453476,1780921833000,-1000.0,0.00013699,2]
[424453480,1780921833000,-166.66,0.00013836,2]
[424453473,1780921833000,-968.49,0.00013699,2]
[424453486,1780921833000,-898.38605903,0.00014078,2]
[424453485,1780921833000,-327.20489407,0.00014078,2]
[424453484,1780921833000,-15894.42818488,0.00013987,2]
[424453474,1780921833000,-168.74,0.00013699,2]
[424453475,1780921833000,-843.7,0.00013699,2]
[424453550,1780921834000,-2000.0,0.000147,2]
[424453547,1780921834000,-1284.3787,0.000147,2]
[424453551,1780921834000,-200.0,0.000147,5]
[424453549,1780921834000,-20422.43931928,0.000147,2]
[424453539,1780921834000,-568.976,0.000146,2]
[424453548,1780921834000,-200.0,0.000147,5]
[424453544,1780921834000,-2783.9092,0.00014621,2]
[424453545,1780921834000,-6111.0,0.0001465,2]
[424453541,1780921834000,-200.0,0.000146,5]
[424453558,1780921834000,-364.0,0.00014757,2]
[424453552,1780921834000,-15894.42818488,0.00014717,2]
[424453565,1780921834000,-200.0,0.000148,5]
[424453557,1780921834000,-392.0,0.00014756,2]
[424453553,1780921834000,-600.0,0.00014726,2]
[424453554,1780921834000,-427.0,0.00014731,2]
[424453555,1780921834000,-427.0,0.00014736,2]
[424453559,1780921834000,-256.53749417,0.00014763,2]
[424453561,1780921834000,-15000.0,0.00014785,2]
[424453562,1780921834000,-159.88927105,0.00014786,2]
[424453560,1780921834000,-4140.97023602,0.00014777,2]
[424453570,1780921834000,-398.0,0.00014848,2]
[424453564,1780921834000,-500.0,0.00014799,2]
[424453563,1780921834000,-433.0,0.0001479,2]
[424453542,1780921834000,-6111.0,0.00014609,2]
[424453556,1780921834000,-427.0,0.00014743,2]
[424453540,1780921834000,-200.0,0.000146,5]
[424453526,1780921834000,-457.0,0.00014461,2]
[424453538,1780921834000,-4140.97023602,0.00014582,2]
[424453567,1780921834000,-4140.97023602,0.00014812,2]
[424453520,1780921834000,-500.0,0.00014447,2]
[424453521,1780921834000,-213.23313711,0.00014447,2]
[424453514,1780921834000,-500.0,0.00014447,2]
[424453515,1780921834000,-500.0,0.00014447,2]
[424453522,1780921834000,-448.0,0.00014452,2]
[424453516,1780921834000,-500.0,0.00014447,2]
[424453517,1780921834000,-500.0,0.00014447,2]
[424453518,1780921834000,-500.0,0.00014447,2]
[424453519,1780921834000,-174.9440075,0.00014447,2]
[424453531,1780921834000,-1100.0,0.000145,5]
[424453532,1780921834000,-1000.0,0.000145,5]
[424453534,1780921834000,-500.0,0.00014534,2]
[424453533,1780921834000,-4140.97023602,0.00014528,2]
[424453523,1780921834000,-447.0,0.00014461,2]
[424453524,1780921834000,-459.0,0.00014461,2]
[424453525,1780921834000,-459.0,0.00014461,2]
[424453530,1780921834000,-16357.41,0.00014497,2]
[424453527,1780921834000,-394.02,0.0001448,2]
[424453528,1780921834000,-9220.57,0.00014497,2]
[424453529,1780921834000,-1714.86,0.00014497,2]
[424453535,1780921834000,-15894.42818488,0.00014535,2]
[424453536,1780921834000,-4140.97023602,0.00014568,2]
[424453546,1780921834000,-4140.97023602,0.00014658,2]
[424453537,1780921834000,-15000.0,0.00014575,2]
[424453543,1780921834000,-4140.97023602,0.00014614,2]
[424453569,1780921834000,-5800.0,0.00014841,2]
[424453573,1780921834000,-144991.5710465,0.0001485,2]
[424453566,1780921834000,-200.0,0.000148,5]
[424453597,1780921834000,-1680.33,0.000149,2]
[424453600,1780921834000,-1559.37,0.000149,2]
[424453603,1780921834000,-3181.0,0.000149,5]
[424453606,1780921834000,-200.0,0.000149,5]
[424453605,1780921834000,-15894.42818488,0.000149,2]
[424453607,1780921834000,-898.38605903,0.000149,2]
[424453608,1780921834000,-200.0,0.000149,5]
[424453612,1780921834000,-392.0,0.0001492,2]
[424453609,1780921834000,-624.59697263,0.000149,2]
[424453604,1780921834000,-5605.6745345,0.000149,2]
[424453613,1780921834000,-381.0,0.00014942,2]
[424453599,1780921834000,-2329.69,0.000149,2]
[424453611,1780921834000,-427.0,0.00014908,2]
[424453615,1780921834000,-7949.0,0.00014959,2]
[424453617,1780921834000,-427.0,0.00014965,2]
[424453614,1780921834000,-392.0,0.00014945,2]
[424453568,1780921834000,-427.0,0.00014819,2]
[424453624,1780921834000,-443.65147059,0.00014989,2]
[424453620,1780921834000,-151.0,0.00014986,2]
[424453619,1780921834000,-150.0,0.00014986,2]
[424453622,1780921834000,-18064.66464344,0.00014989,2]
[424453623,1780921834000,-895.41,0.00014989,2]
[424453618,1780921834000,-427.0,0.00014966,2]
[424453621,1780921834000,-500.0,0.00014988,2]
[424453610,1780921834000,-158.65713719,0.000149,2]
[424453601,1780921834000,-2000.0,0.000149,2]
[424453616,1780921834000,-6879.94196857,0.0001496,2]
[424453598,1780921834000,-1041.67,0.000149,2]
[424453602,1780921834000,-327.20489407,0.000149,2]
[424453577,1780921834000,-282.464,0.0001485,2]
[424453572,1780921834000,-500.0,0.00014849,2]
[424453578,1780921834000,-282.464,0.0001485,2]
[424453571,1780921834000,-5800.0,0.00014849,2]
[424453579,1780921834000,-5800.0,0.00014858,2]
[424453574,1780921834000,-28460.63425599,0.0001485,2]
[424453576,1780921834000,-282.46399,0.0001485,2]
[424453575,1780921834000,-63828.54423831,0.0001485,2]
[424453581,1780921834000,-3367.46784887,0.00014866,2]
[424453583,1780921834000,-5800.0,0.00014874,2]
[424453585,1780921834000,-5800.0,0.00014883,2]
[424453580,1780921834000,-2432.53215113,0.00014866,2]
[424453587,1780921834000,-427.0,0.00014896,2]
[424453595,1780921834000,-3141.0,0.000149,5]
[424453586,1780921834000,-5800.0,0.00014891,2]
[424453596,1780921834000,-701.07,0.000149,2]
[424453592,1780921834000,-158.65713719,0.00014899,2]
[424453593,1780921834000,-158.65713719,0.000149,2]
[424453594,1780921834000,-5800.0,0.000149,2]
[424453588,1780921834000,-2000.0,0.00014896,2]
[424453589,1780921834000,-158.65713722,0.00014898,2]
[424453591,1780921834000,-158.65713719,0.00014899,2]
[424453590,1780921834000,-158.65713719,0.00014898,2]
[424453584,1780921834000,-200.0,0.0001488,2]
[424453582,1780921834000,-427.0,0.0001487,2]
[424453655,1780921838000,-500.0,0.00014999,2]
[424453654,1780921838000,-500.0,0.00014999,2]
[424453649,1780921838000,-7498.0170903,0.00014999,2]
[424453657,1780921838000,-500.0,0.00014999,2]
[424453651,1780921838000,-2143.4627985,0.00014999,2]
[424453652,1780921838000,-2645.59698609,0.00014999,2]
[424453648,1780921838000,-372491.1933187,0.00014999,2]
[424453650,1780921838000,-25421.6007206,0.00014999,2]
[424453660,1780921838000,-500.0,0.00014999,2]
[424453658,1780921838000,-500.0,0.00014999,2]
[424453662,1780921838000,-500.0,0.00014999,2]
[424453663,1780921838000,-500.0,0.00014999,2]
[424453667,1780921838000,-500.0,0.00014999,2]
[424453664,1780921838000,-500.0,0.00014999,2]
[424453661,1780921838000,-500.0,0.00014999,2]
[424453653,1780921838000,-500.0,0.00014999,2]
[424453656,1780921838000,-500.0,0.00014999,2]
[424453647,1780921838000,-500.0,0.00014998,2]
[424453636,1780921838000,-151.0,0.00014997,2]
[424453644,1780921838000,-500.0,0.00014998,2]
[424453629,1780921838000,-3149.185,0.00014989,2]
[424453630,1780921838000,-1177.11,0.00014989,2]
[424453631,1780921838000,-571.18927001,0.00014989,2]
[424453633,1780921838000,-8460.0,0.00014989,2]
[424453632,1780921838000,-11903.75382898,0.00014989,2]
[424453634,1780921838000,-76314.22407665,0.00014989,2]
[424453666,1780921838000,-500.0,0.00014999,2]
[424453646,1780921838000,-500.0,0.00014998,2]
[424453635,1780921838000,-427.0,0.00014996,2]
[424453638,1780921838000,-21377.466964,0.00014998,2]
[424453642,1780921838000,-2621.19849465,0.00014998,2]
[424453641,1780921838000,-14326.27386225,0.00014998,2]
[424453640,1780921838000,-3441.0281713,0.00014998,2]
[424453639,1780921838000,-97158.8069258,0.00014998,2]
[424453643,1780921838000,-987737.371512,0.00014998,2]
[424453645,1780921838000,-500.0,0.00014998,2]
[424453637,1780921838000,-250.0,0.00014997,2]
[424453665,1780921838000,-500.0,0.00014999,2]
[424453704,1780921838000,-500.0,0.00014999,2]
[424453668,1780921838000,-500.0,0.00014999,2]
[424453688,1780921838000,-250.0,0.00014999,2]
[424453694,1780921838000,-500.0,0.00014999,2]
[424453695,1780921838000,-500.0,0.00014999,2]
[424453697,1780921838000,-500.0,0.00014999,2]
[424453693,1780921838000,-500.0,0.00014999,2]
[424453702,1780921838000,-500.0,0.00014999,2]
[424453703,1780921838000,-500.0,0.00014999,2]
[424453691,1780921838000,-500.0,0.00014999,2]
[424453713,1780921838000,-500.0,0.00014999,2]
[424453707,1780921838000,-500.0,0.00014999,2]
[424453706,1780921838000,-500.0,0.00014999,2]
[424453709,1780921838000,-500.0,0.00014999,2]
[424453712,1780921838000,-500.0,0.00014999,2]
[424453711,1780921838000,-500.0,0.00014999,2]
[424453710,1780921838000,-500.0,0.00014999,2]
[424453659,1780921838000,-500.0,0.00014999,2]
[424453708,1780921838000,-500.0,0.00014999,2]
[424453699,1780921838000,-500.0,0.00014999,2]
[424453705,1780921838000,-500.0,0.00014999,2]
[424453692,1780921838000,-500.0,0.00014999,2]
[424453701,1780921838000,-500.0,0.00014999,2]
[424453669,1780921838000,-500.0,0.00014999,2]
[424453683,1780921838000,-500.0,0.00014999,2]
[424453684,1780921838000,-500.0,0.00014999,2]
[424453682,1780921838000,-500.0,0.00014999,2]
[424453672,1780921838000,-500.0,0.00014999,2]
[424453685,1780921838000,-500.0,0.00014999,2]
[424453670,1780921838000,-500.0,0.00014999,2]
[424453681,1780921838000,-500.0,0.00014999,2]
[424453679,1780921838000,-500.0,0.00014999,2]
[424453674,1780921838000,-500.0,0.00014999,2]
[424453680,1780921838000,-500.0,0.00014999,2]
[424453677,1780921838000,-500.0,0.00014999,2]
[424453689,1780921838000,-500.0,0.00014999,2]
[424453687,1780921838000,-500.0,0.00014999,2]
[424453690,1780921838000,-500.0,0.00014999,2]
[424453686,1780921838000,-500.0,0.00014999,2]
[424453696,1780921838000,-500.0,0.00014999,2]
[424453740,1780921839000,-500.0,0.00014999,2]
[424453747,1780921839000,-500.0,0.00014999,2]
[424453746,1780921839000,-500.0,0.00014999,2]
[424453745,1780921839000,-500.0,0.00014999,2]
[424453742,1780921839000,-500.0,0.00014999,2]
[424453743,1780921839000,-500.0,0.00014999,2]
[424453741,1780921839000,-500.0,0.00014999,2]
[424453749,1780921839000,-500.0,0.00014999,2]
[424453744,1780921839000,-500.0,0.00014999,2]
[424453750,1780921839000,-500.0,0.00014999,2]
[424453761,1780921839000,-500.0,0.00014999,2]
[424453751,1780921839000,-500.0,0.00014999,2]
[424453752,1780921839000,-228.97,0.00014999,2]
[424453753,1780921839000,-2000.0,0.00014999,2]
[424453754,1780921839000,-500.0,0.00014999,2]
[424453755,1780921839000,-500.0,0.00014999,2]
[424453757,1780921839000,-500.0,0.00014999,2]
[424453756,1780921839000,-500.0,0.00014999,2]
[424453759,1780921839000,-617.78689611,0.00014999,2]
[424453758,1780921839000,-500.0,0.00014999,2]
[424453736,1780921839000,-500.0,0.00014999,2]
[424453748,1780921839000,-500.0,0.00014999,2]
[424453738,1780921839000,-500.0,0.00014999,2]
[424453725,1780921839000,-500.0,0.00014999,2]
[424453737,1780921839000,-500.0,0.00014999,2]
[424453714,1780921839000,-500.0,0.00014999,2]
[424453715,1780921839000,-500.0,0.00014999,2]
[424453716,1780921839000,-500.0,0.00014999,2]
[424453717,1780921839000,-500.0,0.00014999,2]
[424453760,1780921839000,-257.53388507,0.00014999,2]
[424453718,1780921839000,-500.0,0.00014999,2]
[424453726,1780921839000,-500.0,0.00014999,2]
[424453727,1780921839000,-500.0,0.00014999,2]
[424453724,1780921839000,-500.0,0.00014999,2]
[424453721,1780921839000,-500.0,0.00014999,2]
[424453735,1780921839000,-500.0,0.00014999,2]
[424453719,1780921839000,-500.0,0.00014999,2]
[424453720,1780921839000,-500.0,0.00014999,2]
[424453723,1780921839000,-500.0,0.00014999,2]
[424453729,1780921839000,-500.0,0.00014999,2]
[424453739,1780921839000,-500.0,0.00014999,2]
[424453728,1780921839000,-500.0,0.00014999,2]
[424453731,1780921839000,-500.0,0.00014999,2]
[424453730,1780921839000,-500.0,0.00014999,2]
[424453732,1780921839000,-500.0,0.00014999,2]
[424453734,1780921839000,-500.0,0.00014999,2]
[424453733,1780921839000,-500.0,0.00014999,2]
[424453722,1780921839000,-500.0,0.00014999,2]
[424453763,1780921839000,-271.79380169,0.00014999,2]
[424453765,1780921839000,-300.0,0.00014999,2]
[424453762,1780921839000,-500.0,0.00014999,2]
[424453794,1780921839000,-150.126,0.00015,2]
[424453791,1780921839000,-150.13,0.00015,2]
[424453798,1780921839000,-2000.0,0.00015,2]
[424453788,1780921839000,-1414.69,0.00015,2]
[424453797,1780921839000,-300.0,0.00015,2]
[424453792,1780921839000,-150.057,0.00015,2]
[424453793,1780921839000,-150.0,0.00015,2]
[424453800,1780921839000,-1741.09,0.00015,2]
[424453807,1780921839000,-520.9,0.00015,2]
[424453799,1780921839000,-2000.0,0.00015,2]
[424453795,1780921839000,-1200.0,0.00015,2]
[424453810,1780921839000,-1283.354,0.00015,2]
[424453809,1780921839000,-151.0,0.00015,2]
[424453773,1780921839000,-300.0,0.00014999,2]
[424453805,1780921839000,-450.0,0.00015,2]
[424453802,1780921839000,-392.12,0.00015,2]
[424453801,1780921839000,-2000.0,0.00015,2]
[424453803,1780921839000,-1435.27,0.00015,2]
[424453806,1780921839000,-443.0,0.00015,2]
[424453811,1780921839000,-4597403.66484719,0.00015,2]
[424453812,1780921839000,-446.26987052,0.00015,2]
[424453813,1780921839000,-1158.64440552,0.00015,2]
[424453808,1780921839000,-200.0,0.00015,2]
[424453796,1780921839000,-500.0,0.00015,2]
[424453804,1780921839000,-300.45,0.00015,2]
[424453790,1780921839000,-150.103,0.00015,2]
[424453789,1780921839000,-250.0,0.00015,2]
[424453774,1780921839000,-666.0,0.00014999,2]
[424453766,1780921839000,-300.0,0.00014999,2]
[424453764,1780921839000,-300.0,0.00014999,2]
[424453769,1780921839000,-300.0,0.00014999,2]
[424453770,1780921839000,-300.0,0.00014999,2]
[424453768,1780921839000,-300.0,0.00014999,2]
[424453767,1780921839000,-300.0,0.00014999,2]
[424453772,1780921839000,-300.0,0.00014999,2]
[424453771,1780921839000,-300.0,0.00014999,2]
[424453776,1780921839000,-351.81334123,0.00015,2]
[424453784,1780921839000,-10101.50401151,0.00015,2]
[424453775,1780921839000,-1957668.06265451,0.00015,2]
[424453785,1780921839000,-6991.40362777,0.00015,2]
[424453778,1780921839000,-16217.70849496,0.00015,2]
[424453780,1780921839000,-9475.5641179,0.00015,2]
[424453777,1780921839000,-150.0,0.00015,2]
[424453779,1780921839000,-150.0,0.00015,2]
[424453786,1780921839000,-1004.26684243,0.00015,2]
[424453781,1780921839000,-200.0,0.00015,2]
[424453782,1780921839000,-1131066.51475227,0.00015,2]
[424453783,1780921839000,-106077.80497459,0.00015,2]
[424453787,1780921839000,-150.0,0.00015,2]
[424453821,1780921840000,-19689.74120115,0.00015,2]
[424453822,1780921840000,-445.85411874,0.00015,2]
[424453820,1780921840000,-524.27769317,0.00015,2]
[424453825,1780921840000,-731.50088629,0.00015,2]
[424453824,1780921840000,-848.60926824,0.00015,2]
[424453823,1780921840000,-1240.24704852,0.00015,2]
[424453826,1780921841000,-11483.0,0.00015,2]
[424453839,1780921843000,-6990.16537593,0.00015,2]
[424453838,1780921843000,-292.43122862,0.00015,2]
[424453840,1780921843000,-1515.47763968,0.00015,2]
[424453841,1780921843000,-8778.84769887,0.00015,2]
[424453843,1780921843000,-599.78908932,0.00015,2]
[424453842,1780921843000,-10847.72803583,0.00015,2]
[424453844,1780921843000,-2029.42715425,0.00015,2]
[424453847,1780921843000,-10554.40775948,0.00015,2]
[424453846,1780921843000,-255.28869841,0.00015,2]
[424453845,1780921843000,-46.8769813,0.00015,2]
[424453848,1780921846000,-1258.25490659,0.00015,2]
[424453849,1780921846000,-366.69020406,0.00015,2]
[424453850,1780921846000,-6304.37,0.00015,2]
[424453852,1780921846000,-354.13372224,0.00015,2]
[424453853,1780921846000,-348.00732758,0.00015,2]
[424453854,1780921846000,-1641.89436833,0.00015,2]
[424453851,1780921846000,-14173.63434057,0.00015,2]
[424453860,1780921847000,-1692.92092672,0.00015,2]
[424453859,1780921847000,-215.03290396,0.00014776,2]
[424453858,1780921847000,-215.03290396,0.00014627,2]
[424453863,1780922435000,325.94,0.00029452,120]
[424453864,1780922796000,2935.41042444,0.00030136,120]
[424453867,1780922929000,-156.4034983,0.00011835,2]
[424453866,1780922929000,-543.39050052,0.00011716,2]
[424453865,1780922929000,-3041.32485548,0.00011716,2]
[424453868,1780922929000,-2341.53085666,0.00011935,2]
[424453871,1780922929000,-150.0,0.00011942,2]
[424453870,1780922929000,-215.86427702,0.00011935,2]
[424453873,1780922929000,-250.0,0.00012002,2]
[424453872,1780922929000,-250.0,0.0001195,2]
[424453869,1780922929000,-1658.46914334,0.00011935,2]
[424453874,1780922930000,-300.0,0.00012018,2]
[424453876,1780922930000,-3041.32485548,0.00012019,2]
[424453877,1780922930000,-785.65552807,0.00012019,2]
[424453878,1780922930000,-150.0,0.00012053,2]
[424453875,1780922930000,-216.99143512,0.00012019,2]
[424453880,1780922930000,-890.66886957,0.00012088,2]
[424453881,1780922930000,-200.0,0.00012548,2]
[424453883,1780922930000,-904.00513455,0.00012968,2]
[424453882,1780922930000,-611.10715784,0.00012968,2]
[424453879,1780922930000,-403.8933,0.00012065,2]
[424453921,1780923032000,-150.0,0.00013488,2]
[424453910,1780923032000,-450.0,0.00013329,2]
[424453914,1780923032000,-224.57091147,0.00013488,2]
[424453916,1780923032000,-150.0,0.00013488,2]
[424453915,1780923032000,-238.47314681,0.00013488,2]
[424453917,1780923032000,-150.53336307,0.00013488,2]
[424453918,1780923032000,-150.0,0.00013488,2]
[424453919,1780923032000,-150.0,0.00013488,2]
[424453920,1780923032000,-150.0,0.00013488,2]
[424453923,1780923032000,-500.0,0.00013698,2]
[424453939,1780923032000,-166.66,0.00013836,2]
[424453925,1780923032000,-500.0,0.00013698,2]
[424453927,1780923032000,-501.23722603,0.00013698,2]
[424453926,1780923032000,-500.0,0.00013698,2]
[424453935,1780923032000,-150.0,0.00013702,2]
[424453937,1780923032000,-150.0,0.00013737,2]
[424453912,1780923032000,-600.0,0.00013356,2]
[424453941,1780923032000,-500.0,0.00013863,2]
[424453930,1780923032000,-166.66,0.00013699,2]
[424453928,1780923032000,-500.0,0.00013698,2]
[424453932,1780923032000,-200.0,0.00013699,2]
[424453929,1780923032000,-500.0,0.00013698,2]
[424453924,1780923032000,-276.98837881,0.00013698,2]
[424453911,1780923032000,-454.0,0.00013329,2]
[424453904,1780923032000,-1363.58,0.00013214,2]
[424453908,1780923032000,-444.0,0.00013329,2]
[424453886,1780923032000,-500.0,0.00011775,2]
[424453887,1780923032000,-199.5,0.00012371,2]
[424453890,1780923032000,-413.6172085,0.00012952,2]
[424453888,1780923032000,-312.40637375,0.00012952,2]
[424453889,1780923032000,-4000.0,0.00012952,2]
[424453891,1780923032000,-250.0,0.00012952,2]
[424453893,1780923032000,-153.06,0.00013001,2]
[424453892,1780923032000,-6918.62770761,0.00012968,2]
[424453896,1780923032000,-1260.61,0.00013073,2]
[424453898,1780923032000,-163.99,0.00013159,2]
[424453894,1780923032000,-819.01,0.00013005,2]
[424453897,1780923032000,-150.0,0.00013077,2]
[424453895,1780923032000,-774.28,0.00013011,2]
[424453901,1780923032000,-29999.99,0.00013192,2]
[424453899,1780923032000,-1000.0,0.00013185,2]
[424453902,1780923032000,-9999.99,0.00013192,2]
[424453900,1780923032000,-236.42,0.00013192,2]
[424453903,1780923032000,-186.23,0.00013213,2]
[424453905,1780923032000,-453.0,0.00013329,2]
[424453943,1780923032000,-500.0,0.00013904,2]
[424453906,1780923032000,-454.0,0.00013329,2]
[424453907,1780923032000,-451.0,0.00013329,2]
[424453909,1780923032000,-448.0,0.00013329,2]
[424453913,1780923032000,-166.67,0.00013372,2]
[424453945,1780923032000,-500.0,0.00013904,2]
[424453922,1780923032000,-500.0,0.00013698,2]
[424453952,1780923032000,-500.0,0.00013906,2]
[424453996,1780923032000,-500.0,0.00014173,2]
[424453997,1780923032000,-500.0,0.00014173,2]
[424453995,1780923032000,-500.0,0.00014173,2]
[424453998,1780923032000,-500.0,0.00014173,2]
[424454000,1780923032000,-355.60355233,0.00014173,2]
[424454002,1780923032000,-500.0,0.00014173,2]
[424454001,1780923032000,-500.0,0.00014173,2]
[424454004,1780923032000,-150.0,0.00014173,2]
[424454005,1780923032000,-150.0,0.00014173,2]
[424454010,1780923032000,-500.0,0.00014173,2]
[424454003,1780923032000,-536.89809248,0.00014173,2]
[424454006,1780923032000,-500.0,0.00014173,2]
[424454009,1780923032000,-500.0,0.00014173,2]
[424454007,1780923032000,-199.68095837,0.00014173,2]
[424454008,1780923032000,-500.0,0.00014173,2]
[424454011,1780923032000,-500.0,0.00014173,2]
[424454012,1780923032000,-500.0,0.00014173,2]
[424454013,1780923032000,-500.0,0.00014173,2]
[424454014,1780923032000,-500.0,0.00014173,2]
[424454017,1780923032000,-150.0,0.00014173,2]
[424454018,1780923032000,-210.66083121,0.00014173,2]
[424453947,1780923032000,-453.0,0.00013906,2]
[424454015,1780923032000,-397.57156841,0.00014173,2]
[424453994,1780923032000,-500.0,0.00014173,2]
[424453993,1780923032000,-500.0,0.00014173,2]
[424454016,1780923032000,-150.0,0.00014173,2]